Cogmind - Beta 14 @@@ ROGUE MODE // 2024.10.30 @ 16:25:08 Player: Flawless Result: Destroyed by G-47 Trooper with Particle Gun Performance ------------- Evolutions (0) 0 Regions Visited (1) 200 Robots Destroyed (4) 20 Value Destroyed (136) 136 Prototype IDs (0) 0 Alien Tech Used (0) 0 Bonus (0) 0 TOTAL SCORE: 356 Bonus ------- None Cogmind --------- Core Integrity 0/250 Matter 268/300 Energy 100/100 System Corruption 3% Temperature Hot (239) Movement Core (200) Ox3 Location -10/Materials Parts ------- > --- POWER (1) -------- (None) > --- PROPULSION (2) --- (None) > --- UTILITY (2) ------ Heat Sink Small Storage Unit > --- WEAPON (2) ------- Heavy Assault Rifle Heavy Assault Rifle > --- INVENTORY (8) ---- Targeting Computer Grenade Launcher Peak State ------------ > --- POWER ------------ Light Ion Engine > --- PROPULSION ------- Wheel Wheel > --- UTILITY ---------- Heat Sink Small Storage Unit > --- WEAPON ----------- Assault Rifle Heavy Assault Rifle > --- INVENTORY -------- (None) [Rating: 8] Favorites ----------- Power Light Ion Engine Engine Light Ion Engine Propulsion Wheel Wheel Wheel Utility Heat Sink Device Heat Sink Storage Small Storage Unit Weapon Assault Rifle Energy Gun EM Pulse Gun Ballistic Gun Assault Rifle Build | -11 -10 ------- Run | Yrd Mat Slots Evolved . | . . Power . | . . Propulsion . | . . Utility . | . . Weapon . | . . Parts Attached 12 | 8 4 Power 1 | 1 . Engine 1 | 1 . Core . | . . Reactor . | . . Propulsion 4 | 4 . Treads . | . . Leg . | . . Wheel 4 | 4 . Hover . | . . Flight . | . . Utility 2 | 1 1 Device 1 | 1 . Storage 1 | . 1 Processor . | . . Hackware . | . . Protection . | . . Artifact . | . . Weapon 5 | 2 3 Energy Gun 1 | 1 . Energy Cannon . | . . Ballistic Gun 4 | 1 3 Ballistic Cannon . | . . Launcher . | . . Special Weapon . | . . Impact Weapon . | . . Slashing Weapon . | . . Piercing Weapon . | . . Special Melee Weapon . | . . Unidentified Prototypes . | . . Parts Lost 5 | . 5 Power 1 | . 1 Propulsion 2 | . 2 Utility . | . . Weapon 2 | . 2 Highest Loss Streak 5 | . 5 To Critical Strikes . | . . Average Slot Usage (%) 76 | . 76 Engine 8 | . 8 Wheel 19 | . 19 Device 14 | . 14 Storage 13 | . 13 Energy Gun 1 | . 1 Ballistic Gun 18 | . 18 Peak Build Rating 8 | 6 8 Average Rating 5 | 3 6 On Entrance 3 | . 6 Naked Turns . | . . Heaviest Build 14 | 8 14 Greatest Support 20 | 20 20 Greatest Overweight (x) 3 | . 3 Average Overweight (x) . | . . Largest Inventory Capacity 8 | 5 8 Average Capacity 7 | 5 7 Most Carried 5 | 5 4 Average Carried 2 | 2 1 Final Capacity 8 | 5 8 Final Carried 3 | 3 2 Class Distribution -------------------- 100% | Mutant Dominant Class ---------------- Mutant | -10/Materials Resources | -11 -10 ----------- Run | Yrd Mat Matter Collected 333 | 273 60 Remotely . | . . Salvage Created 187 | 50 137 Parts 11 | 4 7 Haulers Intercepted . | . . Recyclers Shooed . | . . Parts Field Recycled . | . . Retrieved Matter . | . . Parts Self-Destructed . | . . Prevented . | . . Kills | -11 -10 ------- Run | Yrd Mat Combat Hostiles Destroyed 4 | 1 3 Guns 4 | 1 3 Classes Destroyed 1 | 1 . Grunt 4 | 1 3 Best Kill Streak 2 | 1 2 Combat Bots Only 2 | 1 2 Max Kills in Single Turn 1 | 1 1 Gunslinging . | . . Exploded . | . . Melee . | . . Uniques/NPCs Destroyed . | . . Combat | -11 -10 -------- Run | Yrd Mat Hostile Shots Fired 81 | 4 77 Missed 22 | 3 19 Damage Taken 823 | 11 812 Core 264 | . 264 Absorbed by Shields . | . . Core Remaining (%) 100 | 100 . Volleys Fired 16 | 1 15 Largest 2 | 2 2 Hottest 60 | 60 46 Shots Fired 27 | 2 25 Gun 27 | 2 25 Cannon . | . . Launcher . | . . Special . | . . Kinetic 26 | 1 25 Thermal . | . . Explosive . | . . Electromagnetic 1 | 1 . Robot Hit Streak 9 | 2 9 Robot Miss Streak 3 | . 3 Penetration Max . | . . Secondary Targets . | . . Shots Hit Robots 19 | 2 17 Core Hits 9 | 1 8 Critical Kills . | . . Critical Parts Destroyed . | . . Critical Strikes . | . . Melee Attacks . | . . Impact . | . . Slashing . | . . Piercing . | . . Sneak Attacks . | . . Combat Hostiles . | . . Follow-up Attacks . | . . Damage Inflicted 282 | 30 252 Guns 276 | 30 246 Cannons . | . . Explosions . | . . Melee . | . . Ramming 6 | . 6 Kinetic 261 | 15 246 Thermal . | . . Explosive . | . . Electromagnetic 15 | 15 . Impact . | . . Slashing . | . . Piercing . | . . Highest Corruption 3 | . 3 Average Corruption 3 | . 3 Corruption Purged . | . . Corruption Blocked . | . . Effects 2 | . 2 Message Errors 1 | . 1 Heat Flow Errors 1 | . 1 Overload Shots . | . . Overflow Damage . | . . Projectiles . | . . Explosions . | . . Melee . | . . Knockbacks . | . . Impact . | . . Kinetic . | . . Secondary . | . . Self-Inflicted Damage 3 | . 3 Shots . | . . Rammed 4 | . 4 Targets Rammed 4 | . 4 Kicked . | . . Crushed . | . . Highest Temperature 231 | . 231 Average Temperature 171 | . 171 Received Heat Transfer 492 | 6 486 Siege Activations . | . . Robots Corrupted . | . . Combat Hostiles . | . . Parts Fried . | . . Impact Corruptions . | . . Robots Melted . | . . Combat Hostiles . | . . Parts Melted . | . . Heat Transferred . | . . Parts Sabotaged . | . . Parts Stolen . | . . Parts Stripped . | . . Power Chain Reactions . | . . Alert | -11 -10 ------- Run | Yrd Mat Peak Influence 100 | 20 100 Initial 13 | . 13 Average 33 | 2 48 Maximum Alert Level . | . . Low Security (%) 100 | 100 100 Level 1 . | . . Level 2 . | . . Level 3 . | . . Level 4 . | . . Level 5 . | . . High Security . | . . Max Security . | . . Squads Dispatched 1 | . 1 Investigation . | . . Extermination . | . . Reinforcement 1 | . 1 Assault . | . . Garrison . | . . Intercept . | . . Searches Triggered . | . . Construction Impeded . | . . Haulers Reinforced . | . . Active Scanning Responses . | . . Cargo Convoy Interrupts . | . . Stealth | -11 -10 --------- Run | Yrd Mat Distress Signals 1 | . 1 Communications Jammed . | . . Distress Signals . | . . Times Spotted 11 | 1 10 Peak Tracking Total 5 | 1 5 Tactical Retreats 1 | . 1 Traps | -11 -10 ------- Run | Yrd Mat Traps Triggered . | . . Indirectly . | . . Trap Hack Attempts . | . . Triggered . | . . Disarmed . | . . Reprogrammed . | . . Reused . | . . Traps Extracted . | . . Installed . | . . Triggered . | . . Machines | -11 -10 ---------- Run | Yrd Mat Machines Disabled . | . . Max in Single Turn . | . . Machines Repaired . | . . Machines Dismantled . | . . Machines Sabotaged . | . . Overloaded Fab Kills . | . . Hacking | -11 -10 --------- Run | Yrd Mat Machines Accessed 1 | . 1 Terminals . | . . Fabricators . | . . Repair Stations 1 | . 1 Recycling Units . | . . Scanalyzers . | . . Garrison Access . | . . Total Hacks 1 | . 1 Successful 1 | . 1 Failed . | . . Catastrophic . | . . Database Lockouts . | . . Manual . | . . Terminals . | . . Fabricators . | . . Repair Stations 1 | . 1 Recycling Units . | . . Scanalyzers . | . . Garrison Access . | . . Terminal Hacks . | . . Fabricator Hacks . | . . Repair Station Hacks 1 | . 1 Scan Component 1 | . 1 Recycling Unit Hacks . | . . Scanalyzer . | . . Garrison Access Hacks . | . . Unauthorized Hacks . | . . Terminals . | . . Fabricators . | . . Repair Stations . | . . Recycling Units . | . . Scanalyzers . | . . Garrison Access . | . . Data Cores Recovered . | . . Used . | . . Hacking Detections 1 | . 1 Full Trace Events . | . . Feedback Events . | . . Feedback Blocked . | . . Robot Schematics Acquired . | . . Robots Built . | . . Authchips . | . . Time . | . . Total Robot Build Rating . | . . Part Schematics Acquired . | . . Parts Built . | . . Authchips . | . . Time . | . . Total Part Build Rating . | . . Parts Repaired . | . . Time . | . . Parts Recycled . | . . Recycled Matter . | . . Retrieved Matter . | . . Retrieved Components . | . . Parts Scanalyzed . | . . Part Schematics Acquired . | . . Parts Damaged . | . . Bothacking | -11 -10 ------------ Run | Yrd Mat Used RIF Installer . | . . Robots Hacked . | . . Non-combat . | . . Combat . | . . Robot Hacks Applied . | . . Relay Couplers Released . | . . Fabnet Peak Effective % . | . . Robots Rewired . | . . Allies Hacked . | . . Hacks Repelled . | . . Allies | -11 -10 -------- Run | Yrd Mat Total Allies . | . . Largest Group . | . . Highest-Rated Group . | . . Highest-Rated Ally . | . . Total Orders . | . . Ally Attacks . | . . Total Damage . | . . Kills . | . . Allies Corrupted . | . . Allies Melted . | . . Intel | -11 -10 ------- Run | Yrd Mat Robot Analysis Total . | . . Derelict Logs Recovered . | . . Drone Launches . | . . Drone Recoveries . | . . Exploration | -11 -10 ------------- Run | Yrd Mat Turns Passed 390 | 125 265 Spaces Moved 360 | 125 235 Core 94 | 31 63 Treads . | . . Legs . | . . Wheels 266 | 94 172 Hover . | . . Flight . | . . Fastest Speed 50 | 50 80 Average Speed 81 | 72 86 Slowest Speed 200 | 80 200 Overloaded Moves . | . . Propulsion Burnouts . | . . Robots Hopped . | . . Cave-ins Triggered . | . . Exploration Rate (%) 16 | 6 26 Regions Visited 1 Branch Regions . Pre-discovered Areas . | . . Known Exits Taken . | . . Unknown Exits Taken 1 | 1 . Scrap Searched . | . . Spaces Dug . | . . Terrain Destroyed . | . . Melee . | . . Projectile . | . . AOE . | . . Terrain Rammed . | . . Walls Destroyed . | . . Machines Disabled . | . . Actions | -11 -10 --------- Run | Yrd Mat Total 431 | 158 273 Wait 19 | 14 5 Move 359 | 124 235 Hop . | . . Pick Up 15 | 9 6 Fast Attach . | . . Attach 12 | 8 4 Detach 2 | 2 . Swap . | . . Drop 4 | . 4 Fire 16 | 1 15 Melee . | . . Ram 4 | . 4 Kick . | . . Crush . | . . Escape Stasis . | . . Rewire . | . . Trap . | . . Miscellaneous . | . . Route ------- -11/Scrapyard -10/Materials (discovered 1 exit: [*Min]) History --------- Turn | Location | Event 2 | -11/Scrapyard | Met Revision 17 98 | -11/Scrapyard | Discovered new exit (range 8) 126 | -11/Scrapyard | Entered Materials 304 | -10/Materials | Build established: Mutant 316 | -10/Materials | Core integrity fell below 50% 318 | -10/Materials | Discovered new exit (range 15) 329 | -10/Materials | Core integrity fell below 20% 343 | -10/Materials | Lost 5 parts (1p2n2w) 391 | -10/Materials | Destroyed by G-47 Trooper with Particle Gun Last Messages --------------- Broken Wheel destroyed. System corrupted by crushing effect (+3). Slammed into G-47 Trooper. Destabilizing: System interference. Heat Sink temporarily disabled. Critical hit (Burn: +37). Overweight warning: You are carrying more than your current propulsion can efficiently support, which slows movement; see status page ('s') or the top of the parts list for the specific mass vs. support values. DD,YB WB8M1YRBC=BTFD EXIT=FOUND K-01 Serf collects debris. W-16 Scout sends out distress signal. K-01 Serf collects debris. Acquired Hvy. Assault Rifle. System corrupted: Heat flow error (+251). K-01 Serf collects debris. [Achievement: First Step to Greatness] Map ----- +----------------------------------------------------+ | | | | | | | | | | | | | | | | | | | | | ???????????????#######???????????????????????????? | | ???????????????# #???????????????????????????? | | ???????????????# #???####????????????????????? | | ???????????????# #???# !##???????????????????? | | ???????????????# " " ##### !#???????????????????? | | ???????????????# "R" # !#???????????????????? | | ???????????????# """ # !#???????????????????? | | ????????###????# # !#???????????????????? | | ????????# ?####+### ##???????????????????? | | ????????# # ####????????????????????? | | ?????????# #???????????????????????? | | ???????????## # #####???????????????????? | | ????????????#?####+###u [[#???????????????????? | | ???????????????# # [[#???????????????????? | | ???????????????# # [[#???????????????????? | | ???????????????# #a @ [[#???????????????????? | | ??????#??????### =]# [ #???????????????????? | | ?????? ????? # = # #???????????????????? | | ?????# ????? ?# #ggg#####???????????????????? | | ???### ??? ??# # #???????????????????????? | | ####"T"#### ########## #???????????????????????? | | #???????????????????????? | | "???????????????????????? | | a # ??????????????????????? | | """" ############# ###?????????????????????? | | """"""" # # # #???????????????????????? | | "" """ + """# # % #???????????????????????? | | #??????# # #???????????????????????? | | #??????# # #???????????????????????? | | "Y"### #??????# + + ??????????????????????? | | """#?# #??????# # # ?????????????????????? | | ####?# #??????# # # ????????????????????? | | ?????# %######## # #?###???????????????????? | | ?????# / # #???????????????????????? | | ??#####+###+########## #???????????????????????? | | ??# #????????# #???????????????????????? | | ### """ #????????# ???????????????????????? | | / "T" """ #???????? ##??????????????????????? | | ### """ +???????? #???????????????????????? | | ??# """ #???????? #???????????????????????? | +----------------------------------------------------+ Best States ------------- Heat Dissipation 35 Energy Generation 10 Energy Capacity 125 Matter Stores 300 Matter Capacity 300 Sight Range 16 Terrain Scan Density 10 Evasion (%) 50 Item Schematics ----------------- None Robot Schematics ------------------ None Fabricated ------------ Nothing Alien Tech Used ----------------- None Achievements -------------- First Step to Greatness Uninvited Guest Challenges ------------ None Game ------ Seed LinearDirtyGravjet Manual? 0 Play Time 00:19:47 Cumulative 0.2 hours Start 2024.10.30 @ 16:03:27 End 2024.10.30 @ 16:25:08 Sessions 1 Manual Loads 0 Difficulty Rogue Special Mode None Game No. 1 Rogue 1 Adventurer 0 Explorer 0 Win Type - Total 0 Types 0/0/0/0/0/0/0/0/0 Lore% 0 Gallery% 0 Achievement% 0 Wizard Run 0 Options --------- Layout 1 ASCII 0 Keyboard 0 Movement Numpad Keybinds 0 Fullscreen 1 Font 24/Proggy Map View 50x35 Zoom Use 0% Tactical HUD 0 Map Filters NONE Filters NONE Steam 1 RUN: 8e3871e3-a455-445b-8670-c72e19ea9f50